{"text_format":"1","workbook":"xlsx","n_sheets":3,"sheets":["ΠΑΡΑΜ","ΤΑΜΕΙΟ ΣΧΟΛΕΙΟΥ","ΠΙΝΑΚΑΣ ΑΠΟΛΟΓΙΣΜΟΥ"],"not_rendered":{"charts":0,"images":1,"macros":1,"external_links":0,"defined_names":44,"comments":0,"pivot_tables":0},"unopened":[],"bounds":{"document_bytes":16777216,"sheet_cells":100000,"rows_first":2000,"rows_last":500,"rows_between":2000,"halvings":0,"cell_chars":16384,"cell_head_chars":4096},"cells_cut":0,"cells_raw":0,"read":"whole","date_system":"1900"}

{"sheet":"ΠΑΡΑΜ","index":0,"n_rows":48,"n_cols":5,"rows_kept":48,"cut":false,"hidden":false,"merged":[[20,4,47,6],[48,0,168,6],[14,1,14,5],[9,2,9,5],[12,2,12,5],[19,0,19,6],[16,2,16,5],[0,6,18,6],[0,0,18,0],[0,1,0,5],[6,2,6,5],[3,2,3,5],[5,1,5,5],[7,2,7,5],[13,2,13,5],[8,2,8,5],[11,2,11,5],[25,1,25,3],[26,1,26,3],[22,1,22,3],[1,1,1,5],[17,2,17,5],[18,2,18,5],[15,1,15,5],[10,1,10,5],[2,2,2,5],[4,2,4,5],[21,0,21,3],[33,0,33,3],[42,1,42,2],[41,1,41,2],[27,1,27,3],[28,1,28,3],[29,1,29,3],[30,1,30,3],[23,1,23,3],[24,1,24,3],[47,1,47,2],[46,1,46,2],[43,1,43,2],[44,1,44,2],[45,1,45,2],[31,1,31,3]]}
[null,"ΚΑΝΕ  ΤΙΣ  ΚΑΤΑΛΛΗΛΕΣ  ΑΛΛΑΓΕΣ\nΠΡΙΝ  ΑΠΌ  ΟΤΙΔΗΠΟΤΕ  ΑΛΛΟ"]
[]
[null,"ΟΝΟΜΑΣΙΑ ΣΧΟΛΕΙΟΥ:",".../Θ ΔΗΜΟΤΙΚΟΥ   …………………………..."]
[null,"ΟΙΚΟΝΟΜΙΚΟ ΕΤΟΣ",2010]
[null,"ΕΠΩΝΥΜΙΑ ΣΧΟΛΙΚΗΣ ΕΠΙΤΡΟΠΗΣ","….. ΣΧΟΛΙΚΗ ΕΠΙΤΡΟΠΗ ../ΘΕΣΊΟΥ ΔΗΜΟΤΙΚΟΥ ΣΧΟΛΕΙΟΥ & ΝΗΠΙΑΓΩΓΕΙΟΥ ΔΗΜΟΥ ………….."]
[]
[null,"ΕΔΡΑ ΣΧΟΛ. ΕΠΙΤΡΟΠΗΣ","ΝΑΥΠΛΙΟ"]
[null,"ΤΑΧ.ΚΩΔΙΚΟΣ",21100]
[null,"ΤΗΣ ΠΟΛΗ","ΝΑΥΠΛΙΟ"]
[null,"ΤΗΛΕΦΩΝΟ","2752 0 ………"]
[]
[null,"ΟΝΟΜΑ ΠΡΟΕΔΡΟΥ ΣΧΟΛΙΚΗΣ ΕΠΙΤΡΟΠΗΣ","Αναστάσιος ………………….."]
[null,"Δ.Ο.Υ.","ΝΑΥΠΛΙΟΥ"]
[null,"Α.Φ.Μ.","__________________"]
[]
[null,"Δ/ΝΤΗΣ - ΥΠΟΛΟΓΟΣ"]
[null,"ΟΝΟΜΑΤΕΠΩΝΥΜΟ ","ΔΑΣΚΑΛΟΣ"]
[null,"Α.Φ.Μ.","__________________"]
[null,"Δ. Ο. Υ.","ΝΑΥΠΛΙΟΥ"]
[]
[null,null,null,null," "]
["ΚΩΔΙΚΟΙ   ΕΣΟΔΩΝ"]
[11,"Από κρατική επιχορήγηση μέσω Δήμου για επισκευή και συντήρηση των σχολικών κτιρίων"]
[12,"Από κρατική επιχορήγηση μέσω Δήμου για λειτουργικές δαπάνες σχολείου"]
[13,"Από Προϋπολογισμό του Δήμου – Χρηματοδότηση Νομικών Προσώπων (άρθρο 113 του ν.1892/90)"]
[14,"Από την εκμίσθωση σχολικού κυλικείου"]
[15,"Από τόκους καταθέσεων"]
[16,"Από εκποίηση περιουσιακών στοιχείων"]
[17,"Από κάθε είδους εισφορές, δωρεές, κληρονομιές κλπ"]
[18,"Από εισπράξεις οργανώσεων, εορταστικών και άλλων εκδηλώσεων"]
[19,"Από κάθε άλλη νόμιμη πηγή"]
[20,"Για πληρωμή καθαρίστριας -ΕΙΝ"]
[]
["ΚΩΔΙΚΟΙ   ΕΞΟΔΩΝ"]
[31," Γραφική ύλη, έντυπα, είδη Γραφείου"]
[32,"Υλικά καθαριότητας"]
[33," Αμοιβέςκαθαριστριών-φύλακα-σχ. τροχονόμου "]
[34," Εισφορές ΙΚΑ εργοδότη"]
[35," Θέρμανση (καύσιμα)"]
[36," Ταχυδρομικά τέλη"]
[37,"ΔΕΗ - ΟΤΕ- Υδρευση"]
[38,"Eπισκευή & συντηρήση εξοπλισμού διοικησης & εργαστηρίων"]
[39,"Eπισκευών κτηρίου - Συν/ση ή επισκευή διδ/ρίου"]
[40,"Δαπάνες για βιβλία, περιοδικά, συνδρομές κλπ"]
[41,"Δαπάνες αθλητικών -πολιτιστικών & άλλων εκδηλώσεων"]
[42,"Προμήθεια εποπ/κών μέσων διδ/λίας "]
[43," Φωτοτυπικό μηχάνημα - PC - ηλεκτρονικά"]
[44,"Λοιπές δαπάνες (ΜΗ ΠΕΡΙΛΑΜΒΑΝΟΜ. ΣΤΙΣ ΠΙΟ ΠΑΝΩ)"]

{"sheet":"ΤΑΜΕΙΟ ΣΧΟΛΕΙΟΥ","index":1,"n_rows":144,"n_cols":14,"rows_kept":144,"cut":false,"hidden":false,"merged":[[0,7,0,8],[1,7,1,8],[2,4,2,5],[2,6,2,8],[4,4,4,5],[3,0,3,2],[2,0,2,3],[0,1,0,3],[1,1,1,3],[3,6,3,8],[3,3,3,5],[0,4,0,5],[1,4,1,5]]}
["Σύνολο Εσόδων",{"$f":"\"ΒΙΒΛΙΟ ΕΣΟΔΩΝ - ΕΞΟΔΩΝ  \"","v":"ΒΙΒΛΙΟ ΕΣΟΔΩΝ - ΕΞΟΔΩΝ  "},null,null,"ΥΠΟΛΟΙΠΟ",null,"ΓΡΑΨΕ ΕΔΩ ΠΟΣΟ ΚΑΤΑΘΕΣΕΩΝ","Σύνολο Εξόδων"]
[{"$f":"SUM(D6:D142)","v":14203.3},{"$f":"ΣΧ_ΕΠΙΤ","v":"….. ΣΧΟΛΙΚΗ ΕΠΙΤΡΟΠΗ ../ΘΕΣΊΟΥ ΔΗΜΟΤΙΚΟΥ ΣΧΟΛΕΙΟΥ & ΝΗΠΙΑΓΩΓΕΙΟΥ ΔΗΜΟΥ ………….."},null,null,{"$f":"A2-H2","v":12281.189999999999},null,11220.86,{"$f":"SUM(I6:I500)","v":1922.1100000000001}]
["ΣΤΑ ΧΕΡΙΑ ΤΟΥ ΤΑΜΙΑ: ",null,null,null,{"$f":"E2-G2","v":1060.3299999999981}]
["ΕΣΟΔΑ",null,null,{"$f":"ΠΑΡΑΜ!C4","v":2010},null,null,"ΕΞΟΔΑ"]
["Αριθμός -ημερομηνία διπλοτύπου είσπραξης","Στοιχεία καταβάλλοντος και αιτιολογία είσπραξης","κωδ","Ποσό","Αριθμός  - ημερομηνία δικαιολογητικού",null,"Στοιχεία εισπράτοντος και αιτιολογία πληρωμής","κωδ","Ποσό"]
["2010-01-01","Υπόλοιπο προηγούμενου έτους ",null,7003.3,1,"2010-01-12",null,null,1000]
["2010-06-16"," Λειτουργικές Δαπάνες Α΄κατανομή ",11,1000,2,"2010-01-12",null,null,17.850000000000001]
["2010-11-04","Λειτουργικές δαπάνες Β΄κατανομή",null,2000,3,"2010-01-14",null,null,41.65,null,null,null,11,{"$f":"+ΕΣ11","v":"Από κρατική επιχορήγηση μέσω Δήμου για επισκευή και συντήρηση των σχολικών κτιρίων"}]
["4/112010","αμοιβή ΟΣΚ για καθαρίστρια ",null,2000,4,"2010-01-14",null,null,69.72,null,null,null,12,{"$f":"+ΕΣ12","v":"Από κρατική επιχορήγηση μέσω Δήμου για λειτουργικές δαπάνες σχολείου"}]
["2010-12-22","Λειτουργικές δαπάνες Γ΄κατανομή",null,2200,5,"2010-01-18",null,null,75.94,null,null,null,13,{"$f":"+ΕΣ13","v":"Από Προϋπολογισμό του Δήμου – Χρηματοδότηση Νομικών Προσώπων (άρθρο 113 του ν.1892/90)"}]
[null,null,null,null,6,"2010-01-19","ΕΡΓΑΤΙΚΑ",null,30,null,null,null,14,{"$f":"+ΕΣ14","v":"Από την εκμίσθωση σχολικού κυλικείου"}]
[null,null,null,null,7,"2010-01-31","ΚΑΘΑΡΙΣΤΡΙΑ 1ος",null,158.96,null,null,null,15,{"$f":"+ΕΣ15","v":"Από τόκους καταθέσεων"}]
[null,null,null,null,8,"2010-01-31","ΙΚΑ ΚΑΘΑΡΙΣΤΡΙΑΣ 1ος",null,73.989999999999995,null,null,null,16,{"$f":"+ΕΣ16","v":"Από εκποίηση περιουσιακών στοιχείων"}]
[null,null,null,null,9,"2010-01-31","ΠΕΤΡΕΛΑΙΟ -",null,290,null,null,null,17,{"$f":"+ΕΣ17","v":"Από κάθε είδους εισφορές, δωρεές, κληρονομιές κλπ"}]
[null,null,null,null,10,"2010-02-09","ΔΕΗ - ΔΗΜΟΤΙΚΟΥ",null,93,null,null,null,18,{"$f":"+ΕΣ18","v":"Από εισπράξεις οργανώσεων, εορταστικών και άλλων εκδηλώσεων"}]
[null,null,null,null,11,"2010-02-09","ΔΕΗ - ΝΠΗΠΙΑΓΩΓΕΙΟΥ",null,71,null,null,null,19,{"$f":"+ΕΣ19","v":"Από κάθε άλλη νόμιμη πηγή"}]
[null,null,null,null,null,null,null,null,null,null,null,null,20,{"$f":"+ΕΣ20","v":"Για πληρωμή καθαρίστριας -ΕΙΝ"}]
[]
[null,null,null,null,null,null,null,null,null,null,null,null," "," "]
[null,null,null,null,null,null,null,null,null,null,null,null," "," "]
[null,null,null,null,null,null,null,null,null,null,null,null,31,{"$f":"+ΕΧ31","v":" Γραφική ύλη, έντυπα, είδη Γραφείου"}]
[null,null,null,null,null,null,null,null,null,null,null,null,32,{"$f":"+ΕΧ32","v":"Υλικά καθαριότητας"}]
[null,null,null,null,null,null,null,null,null,null,null,null,33,{"$f":"+ΕΧ33","v":" Αμοιβέςκαθαριστριών-φύλακα-σχ. τροχονόμου "}]
[null,null,null,null,null,null,null,null,null,null,null,null,34,{"$f":"+ΕΧ34","v":" Εισφορές ΙΚΑ εργοδότη"}]
[null,null,null,null,null,null,null,null,null,null,null,null,35,{"$f":"+ΕΧ35","v":" Θέρμανση (καύσιμα)"}]
[null,null,null,null,null,null,null,null,null,null,null,null,36,{"$f":"+ΕΧ36","v":" Ταχυδρομικά τέλη"}]
[null,null,null,null,null,null,null,null,null,null,null,null,37,{"$f":"+ΕΧ37","v":"ΔΕΗ - ΟΤΕ- Υδρευση"}]
[null,null,null,null,null,null,null,null,null,null,null,null,38,{"$f":"+ΕΧ38","v":"Eπισκευή & συντηρήση εξοπλισμού διοικησης & εργαστηρίων"}]
[null,null,null,null,null,null,null,null,null,null,null,null,39,{"$f":"+ΕΧ39","v":"Eπισκευών κτηρίου - Συν/ση ή επισκευή διδ/ρίου"}]
[null,null,null,null,null,null,null,null,null,null,null,null,40,{"$f":"+ΕΧ40","v":"Δαπάνες για βιβλία, περιοδικά, συνδρομές κλπ"}]
[null,null,null,null,null,null,null,null,null,null,null,null,41,{"$f":"+ΕΧ41","v":"Δαπάνες αθλητικών -πολιτιστικών & άλλων εκδηλώσεων"}]
[null,null,null,null,null,null,null,null,null,null,null,null,42,{"$f":"+ΕΧ42","v":"Προμήθεια εποπ/κών μέσων διδ/λίας "}]
[null,null,null,null,null,null,null,null,null,null,null,null,43,{"$f":"+ΕΧ43","v":" Φωτοτυπικό μηχάνημα - PC - ηλεκτρονικά"}]
[null,null,null,null,null,null,null,null,null,null,null,null,44,{"$f":"+ΕΧ44","v":"Λοιπές δαπάνες (ΜΗ ΠΕΡΙΛΑΜΒΑΝΟΜ. ΣΤΙΣ ΠΙΟ ΠΑΝΩ)"}]
[]
[]
[]
[]
[]
[]
[]
[]
[]
[]
[]
[]
[]
[]
[]
[]
[]
[]
[]
[]
[]
[]
[]
[]
[]
[]
[]
[]
[]
[]
[]
[]
[]
[]
[]
[]
[]
[]
[]
[]
[]
[]
[]
[]
[]
[]
[]
[]
[]
[]
[]
[]
[]
[]
[]
[]
[]
[]
[]
[]
[]
[]
[]
[]
[]
[]
[]
[]
[]
[]
[]
[]
[]
[]
[]
[]
[]
[]
[]
[]
[]
[]
[]
[]
[]
[]
[]
[]
[]
[]
[]
[]
[]
[]
[]
[]
[]
[]
[]
[]
[]
[]
[]
[]
[]
[]
[]
[]
[]
[null,null,null,null,139]

{"sheet":"ΠΙΝΑΚΑΣ ΑΠΟΛΟΓΙΣΜΟΥ","index":2,"n_rows":31,"n_cols":5,"rows_kept":31,"cut":false,"hidden":false,"merged":[[29,3,29,4],[2,0,4,0],[25,3,25,4],[26,3,26,4],[9,1,10,1],[11,1,12,1],[6,2,23,2],[9,0,10,0],[11,0,12,0],[5,0,5,4]]}
[]
[]
[{"$f":"+ΣΧ_ΕΠΙΤ","v":"….. ΣΧΟΛΙΚΗ ΕΠΙΤΡΟΠΗ ../ΘΕΣΊΟΥ ΔΗΜΟΤΙΚΟΥ ΣΧΟΛΕΙΟΥ & ΝΗΠΙΑΓΩΓΕΙΟΥ ΔΗΜΟΥ ………….."},null,null,"                                     ΟΙΚΟΝ. ΕΤΟΣ:",{"$f":"+ΕΤΟΣ","v":2010}]
[]
[]
["Ε Τ Η Σ Ι Ο Σ   Π Ι Ν Α Κ Α Σ   Α Π Ο Λ Ο Γ Ι Σ Μ Ο Υ"]
["ΚΑΤΗΓΟΡΙΕΣ ΕΣΟΔΩΝ","ΠΟΣΑ",null,"ΚΑΤΗΓΟΡΙΕΣ ΕΞΟΔΩΝ","ΠΟΣΑ"]
["Υπόλοιπο προηγούμενου οικ.έτους",{"$f":"+ΠΡΟΓ_ΥΠΟΛΟΙΠΟ","v":7003.3},null,{"$f":"+ΕΧ31","v":" Γραφική ύλη, έντυπα, είδη Γραφείου"},{"$f":"SUMIF(Κ_ΕΞΟΔΑ,\"=31\",ΕΞΟΔΑ)","v":0}]
[null,null,null,{"$f":"+ΕΧ32","v":"Υλικά καθαριότητας"},{"$f":"SUMIF(Κ_ΕΞΟΔΑ,\"=32\",ΕΞΟΔΑ)","v":0}]
[{"$f":"+ΕΣ11","v":"Από κρατική επιχορήγηση μέσω Δήμου για επισκευή και συντήρηση των σχολικών κτιρίων"},{"$f":"SUMIF(Κ_ΕΣΟΔΑ,\"=11\",ΕΣΟΔΑ)","v":1000},null,{"$f":"+ΕΧ33","v":" Αμοιβέςκαθαριστριών-φύλακα-σχ. τροχονόμου "},{"$f":"SUMIF(Κ_ΕΞΟΔΑ,\"=33\",ΕΞΟΔΑ)","v":0}]
[null,null,null,{"$f":"+ΕΧ34","v":" Εισφορές ΙΚΑ εργοδότη"},{"$f":"SUMIF(Κ_ΕΞΟΔΑ,\"=34\",ΕΞΟΔΑ)","v":0}]
[{"$f":"+ΕΣ12","v":"Από κρατική επιχορήγηση μέσω Δήμου για λειτουργικές δαπάνες σχολείου"},{"$f":"SUMIF(Κ_ΕΣΟΔΑ,\"=12\",ΕΣΟΔΑ)","v":0},null,{"$f":"+ΕΧ35","v":" Θέρμανση (καύσιμα)"},{"$f":"SUMIF(Κ_ΕΞΟΔΑ,\"=35\",ΕΞΟΔΑ)","v":0}]
[null,null,null,{"$f":"+ΕΧ36","v":" Ταχυδρομικά τέλη"},{"$f":"SUMIF(Κ_ΕΞΟΔΑ,\"=36\",ΕΞΟΔΑ)","v":0}]
[{"$f":"+ΕΣ13","v":"Από Προϋπολογισμό του Δήμου – Χρηματοδότηση Νομικών Προσώπων (άρθρο 113 του ν.1892/90)"},{"$f":"SUMIF(Κ_ΕΣΟΔΑ,\"=13\",ΕΣΟΔΑ)","v":0},null,{"$f":"+ΕΧ37","v":"ΔΕΗ - ΟΤΕ- Υδρευση"},{"$f":"SUMIF(Κ_ΕΞΟΔΑ,\"=37\",ΕΞΟΔΑ)","v":0}]
[{"$f":"+ΕΣ14","v":"Από την εκμίσθωση σχολικού κυλικείου"},{"$f":"SUMIF(Κ_ΕΣΟΔΑ,\"=14\",ΕΣΟΔΑ)","v":0},null,{"$f":"+ΕΧ38","v":"Eπισκευή & συντηρήση εξοπλισμού διοικησης & εργαστηρίων"},{"$f":"SUMIF(Κ_ΕΞΟΔΑ,\"=38\",ΕΞΟΔΑ)","v":0}]
[{"$f":"+ΕΣ15","v":"Από τόκους καταθέσεων"},{"$f":"SUMIF(Κ_ΕΣΟΔΑ,\"=15\",ΕΣΟΔΑ)","v":0},null,{"$f":"+ΕΧ39","v":"Eπισκευών κτηρίου - Συν/ση ή επισκευή διδ/ρίου"},{"$f":"SUMIF(Κ_ΕΞΟΔΑ,\"=39\",ΕΞΟΔΑ)","v":0}]
[{"$f":"+ΕΣ16","v":"Από εκποίηση περιουσιακών στοιχείων"},{"$f":"SUMIF(Κ_ΕΣΟΔΑ,\"=16\",ΕΣΟΔΑ)","v":0},null,{"$f":"+ΕΧ40","v":"Δαπάνες για βιβλία, περιοδικά, συνδρομές κλπ"},{"$f":"SUMIF(Κ_ΕΞΟΔΑ,\"=40\",ΕΞΟΔΑ)","v":0}]
[{"$f":"+ΕΣ17","v":"Από κάθε είδους εισφορές, δωρεές, κληρονομιές κλπ"},{"$f":"SUMIF(Κ_ΕΣΟΔΑ,\"=17\",ΕΣΟΔΑ)","v":0},null,{"$f":"+ΕΧ41","v":"Δαπάνες αθλητικών -πολιτιστικών & άλλων εκδηλώσεων"},{"$f":"SUMIF(Κ_ΕΞΟΔΑ,\"=41\",ΕΞΟΔΑ)","v":0}]
[{"$f":"+ΕΣ18","v":"Από εισπράξεις οργανώσεων, εορταστικών και άλλων εκδηλώσεων"},{"$f":"SUMIF(Κ_ΕΣΟΔΑ,\"=18\",ΕΣΟΔΑ)","v":0},null,{"$f":"+ΕΧ42","v":"Προμήθεια εποπ/κών μέσων διδ/λίας "},{"$f":"SUMIF(Κ_ΕΞΟΔΑ,\"=42\",ΕΞΟΔΑ)","v":0}]
[{"$f":"+ΕΣ19","v":"Από κάθε άλλη νόμιμη πηγή"},{"$f":"SUMIF(Κ_ΕΣΟΔΑ,\"=19\",ΕΣΟΔΑ)","v":0},null,{"$f":"+ΕΧ43","v":" Φωτοτυπικό μηχάνημα - PC - ηλεκτρονικά"},{"$f":"SUMIF(Κ_ΕΞΟΔΑ,\"=43\",ΕΞΟΔΑ)","v":0}]
[{"$f":"+ΕΣ20","v":"Για πληρωμή καθαρίστριας -ΕΙΝ"},{"$f":"SUMIF(Κ_ΕΣΟΔΑ,\"=20\",ΕΣΟΔΑ)","v":0},null,{"$f":"+ΕΧ44","v":"Λοιπές δαπάνες (ΜΗ ΠΕΡΙΛΑΜΒΑΝΟΜ. ΣΤΙΣ ΠΙΟ ΠΑΝΩ)"},{"$f":"SUMIF(Κ_ΕΞΟΔΑ,\"=44\",ΕΞΟΔΑ)","v":0}]
[{"$f":"+\"ΣΥΝΟΛΟ   ΕΣΟΔΩΝ  \"&ΕΤΟΣ","v":"ΣΥΝΟΛΟ   ΕΣΟΔΩΝ  2010"},{"$f":"SUM(B8:B21)","v":8003.3},null,{"$f":"+\"ΣΥΝΟΛΟ ΕΞΟΔΩΝ  \"&ΕΤΟΣ","v":"ΣΥΝΟΛΟ ΕΞΟΔΩΝ  2010"},{"$f":"SUM(E8:E21)","v":0}]
[" ",null,null,"TAM. ΥΠΟΛΟΙΠΟ ΓΙΑ ΕΞΙΣΩΣΗ",{"$f":"+B22-E22","v":8003.3}]
[null,null,null,"   Σ Υ Ν Ο Λ Ο  ",{"$f":"SUM(E22:E23)","v":8003.3}]
[]
[null,null,null,{"$f":"+ΕΔΡΑ&\" … / … / 200..\"","v":"ΝΑΥΠΛΙΟ … / … / 200.."}]
["O   ΠΡΟΕΔΡΟΣ  ΤΗΣ  Σ.Ε.",null,null,"                                Η  Σ υ ν τ ά ξ α σα"]
[]
[]
[null,null,null,{"$f":"+ΤΑΜ","v":"ΔΑΣΚΑΛΟΣ"}]
[" ………………………………"]